bitfinex/quotes_ETHUSD_20220123
["timestamp","ask_amount","ask_price","bid_price","bid_amount"]
[1642902385700,0.004,2450.0,2449.8,2.75341054]
[1642902385894,0.004,2450.0,2449.9,2.46326869]
[1642902386194,0.004,2450.0,2449.9,3.47284246]
[1642902386394,0.004,2450.0,2449.9,3.19399947]
[1642902386994,0.004,2450.0,2449.9,1.34399947]
[1642902387494,0.61031061,2450.7,2449.9,1.34399947]
[1642902387696,6.67543602,2451.4,2449.9,4.970395]
[1642902387697,1.4435,2451.3,2449.9,4.970395]
[1642902387895,0.00454739,2450.6,2450.0,3.47294553]
[1642902388298,0.00397897,2450.5,2450.0,7.42474553]
[1642902388495,0.00397897,2450.5,2450.4,3.18419324]
[1642902388695,0.11243354,2451.0,2450.4,3.18419324]
[1642902389142,1.2995,2451.3,2450.4,3.18419324]
[1642902389143,0.00625266,2450.9,2450.4,3.18419324]
[1642902389343,0.00625266,2450.9,2450.4,5.29172807]
[1642902389547,0.00568424,2450.8,2450.4,2.0]
[1642902390045,3.19927369,2451.1,2450.4,2.0]
[1642902390046,0.00511581,2450.7,2450.4,2.0]
[1642902390444,0.00454739,2450.6,2450.4,2.0]
[1642902390855,0.00397897,2450.5,2450.4,2.0]
[1642902391249,0.00397897,2450.5,2450.0,3.9518]
[1642902391651,1.3,2451.0,2450.0,3.9518]
[1642902391652,0.00341054,2450.4,2450.0,3.9518]
[1642902391849,0.00341054,2450.4,2449.9,1.37215658]
[1642902392052,0.00341054,2450.4,2449.7,3.7626]
[1642902392053,0.00284212,2450.3,2449.8,0.00341054]
[1642902392250,0.11243354,2450.1,2449.8,0.00341054]
[1642902392449,0.0022737,2450.2,2449.8,0.00341054]
[1642902392694,0.99572,2450.6,2449.8,0.00341054]
[1642902392695,0.00113685,2450.0,2449.8,0.00341054]
[1642902392892,0.00170527,2450.1,2449.8,0.00341054]
[1642902393093,0.00397897,2450.5,2449.8,0.00341054]
[1642902393291,0.00113685,2450.0,2449.8,3.47648191]
[1642902393495,0.20713054,2450.4,2449.8,3.47648191]
[1642902393697,0.492,2450.0,2449.8,0.00341054]
[1642902393892,2.62177,2450.6,2449.8,0.00341054]
[1642902394091,0.492,2450.5,2449.8,0.00341054]
[1642902394292,0.11243354,2449.9,2449.8,0.00341054]
[1642902394892,0.492,2450.0,2449.8,0.00341054]
[1642902398652,0.0022737,2450.2,2449.8,0.00341054]
[1642902398849,0.0022737,2450.2,2449.8,3.47649416]
[1642902399049,0.00170527,2450.1,2449.8,3.47649416]
[1642902399447,0.00113685,2450.0,2449.8,3.47649416]
[1642902399648,0.00113685,2450.0,2449.9,3.12499194]
[1642902399848,0.00454739,2450.6,2449.9,6.59807556]
[1642902400108,0.61031061,2450.7,2450.0,3.47308362]
[1642902400293,1.492,2451.0,2450.0,3.47308362]
[1642902400493,0.00454739,2450.6,2450.0,3.47308362]
[1642902400697,0.00454739,2450.6,2449.9,1.42499194]
[1642902400894,0.00397897,2450.5,2450.1,1.42636576]
[1642902401096,0.00397897,2450.5,2450.2,5.90276909]
[1642902401302,0.00341054,2450.4,2450.2,3.47258507]
[1642902401496,0.00341054,2450.4,2450.3,3.47258507]
[1642902401696,0.00284212,2450.3,2450.1,1.42636576]
[1642902401894,0.00341054,2450.4,2450.2,2.7]
[1642902402095,0.11243354,2451.2,2450.6,2.96940397]
[1642902402395,0.11243354,2451.2,2450.1,2.22598402]
[1642902402595,0.12039147,2451.2,2450.1,2.22598402]
[1642902403396,0.12039147,2451.2,2450.2,2.60904395]
[1642902403597,0.12039147,2451.2,2450.2,1.14981723]
[1642902404240,0.12039147,2451.2,2450.0,5.1501]
[1642902404241,1.12039147,2451.2,2450.0,5.1501]
[1642902404842,1.12039147,2451.2,2450.0,6.31324616]
[1642902405043,1.12039147,2451.2,2450.4,1.46777229]
[1642902405044,0.00795793,2451.2,2450.4,1.46777229]
[1642902406143,0.00795793,2451.2,2451.1,1.40303625]
[1642902406347,0.00795793,2451.2,2451.1,1.35216446]
[1642902406546,0.00795793,2451.2,2451.1,3.56430529]
[1642902406744,0.00795793,2451.2,2451.1,1.35216446]
[1642902406944,0.00795793,2451.2,2450.7,0.09786318]
[1642902407343,0.00738951,2451.1,2450.7,0.09786318]
[1642902407788,0.00682108,2451.0,2450.7,0.09786318]
[1642902407986,0.00682108,2451.0,2450.8,1.27389447]
[1642902408189,0.00625266,2450.9,2450.8,1.27389447]
[1642902408588,0.00852636,2450.9,2450.7,0.09786318]
[1642902408997,0.00568424,2450.8,2450.6,7.1033]
[1642902409192,0.00568424,2450.8,2450.6,3.2063]
[1642902409394,0.00511581,2450.7,2450.6,3.2063]
[1642902409594,0.00511581,2450.7,2450.3,5.0863]
[1642902409792,0.00511581,2450.7,2450.3,3.8839]
[1642902409992,0.00454739,2450.6,2450.3,3.8839]
[1642902410192,0.00454739,2450.6,2450.1,1.1733]
[1642902410391,0.00397897,2450.5,2449.8,9.30182837]
[1642902410592,7.897e-05,2450.5,2450.1,2.25138016]
[1642902410793,7.48,2451.7,2450.4,2.71235337]
[1642902410991,7.48,2451.7,2450.5,2.22598402]
[1642902411194,0.00519478,2451.4,2450.5,2.89318402]
[1642902411449,0.00519478,2451.4,2451.1,1.0977456]
[1642902411653,0.00462636,2451.3,2451.1,2.6118176]
[1642902412048,4.2325,2452.4,2451.1,2.6118176]
[1642902412049,0.00405793,2451.2,2451.1,2.6118176]
[1642902413149,0.00405793,2451.2,2451.1,2.8160176]
[1642902414852,0.00405793,2451.2,2451.1,2.6118176]
[1642902416189,0.00405793,2451.2,2450.8,4.8683]
[1642902416392,0.00405793,2451.2,2450.4,3.8206]
[1642902416592,0.00348951,2451.1,2450.5,3.8641]
[1642902416990,0.00292108,2451.0,2450.5,3.8641]
[1642902417394,0.00235266,2450.9,2450.6,2.72485161]
[1642902417892,0.00178424,2450.8,2450.6,1.52058794]
[1642902418292,0.492,2451.5,2450.6,1.52058794]
[1642902418293,0.00121581,2450.7,2450.6,1.52058794]
[1642902418491,0.00121581,2450.7,2450.5,3.8641]
[1642902419550,0.00121581,2450.7,2450.5,5.26709174]
[1642902420149,0.00121581,2450.7,2450.5,3.8641]
[1642902421550,0.00121581,2450.7,2450.6,3.80227116]
[1642902421953,0.00121581,2450.7,2450.6,3.54634079]
[1642902422148,0.00121581,2450.7,2450.6,2.25]
[1642902422349,0.00121581,2450.7,2450.5,3.8641]
[1642902422588,0.00121581,2450.7,2450.1,0.00219473]
[1642902422788,0.49321581,2450.7,2450.1,0.00219473]
[1642902422989,0.49321581,2450.7,2449.8,0.10127372]
[1642902422990,0.49321581,2450.7,2449.9,0.00333157]
[1642902423188,0.79321581,2450.7,2449.9,0.00333157]
[1642902423386,0.49321581,2450.7,2449.9,0.00333157]
[1642902423588,0.49321581,2450.7,2449.9,3.47613299]
[1642902423788,0.00121581,2450.7,2450.1,1.32512829]
[1642902424187,0.00121581,2450.7,2450.2,0.0016263]
[1642902425590,0.45579062,2451.1,2450.3,1.85]
[1642902425990,0.00170527,2451.0,2450.4,0.00170527]
[1642902426444,0.00113685,2450.9,2450.4,0.00170527]
[1642902426642,0.00113685,2450.9,2449.9,3.47729642]
[1642902426943,0.00113685,2450.9,2450.0,0.00397896]
[1642902427342,0.00113685,2450.9,2450.1,0.00341054]
[1642902427542,0.00113685,2450.9,2450.2,1.20604742]
[1642902427746,0.00113685,2450.9,2450.0,0.00397896]
[1642902427942,0.00113685,2450.9,2450.3,0.00227369]
[1642902428143,0.00113685,2450.9,2450.0,0.00397896]
[1642902428844,0.00113685,2450.9,2450.0,1.3211739]
[1642902429043,0.00113685,2450.9,2450.0,1.32515286]
[1642902429244,0.00113685,2450.9,2450.1,0.20761054]
[1642902429445,0.00113685,2450.9,2450.1,2.31514316]
[1642902429648,0.00113685,2450.9,2450.2,0.00284211]
[1642902430290,0.00113685,2450.9,2450.4,2.90985905]
[1642902430791,0.00113685,2450.9,2450.5,2.38201108]
[1642902430991,0.00113685,2450.9,2450.5,0.00113684]
[1642902431391,0.13858866,2450.9,2450.5,0.00113684]
[1642902431588,0.13858866,2450.9,2450.4,0.00170527]
[1642902431589,0.08798866,2450.9,2450.4,0.00170527]
[1642902431887,0.03798866,2450.9,2449.9,3.47721344]
[1642902432087,0.792,2451.0,2450.0,0.00511581]
[1642902432294,1.092,2451.0,2450.0,0.00511581]
[1642902432490,0.492,2451.0,2450.0,2.14720595]
[1642902432691,0.492,2451.0,2450.2,1.56051022]
[1642902433090,0.492,2451.0,2450.3,0.00341054]
[1642902433389,0.492,2451.0,2450.1,3.47713346]
[1642902433588,0.492,2451.0,2450.3,1.31928073]
[1642902434040,0.492,2451.0,2450.4,0.00284212]
[1642902434741,0.492,2451.0,2450.2,0.00397896]
[1642902434947,0.492,2451.0,2450.1,0.00454739]
[1642902435142,0.492,2451.0,2450.0,5.98977433]
[1642902435341,0.492,2451.0,2450.3,1.33736217]
[1642902435643,1.62306655,2451.4,2450.3,1.33736217]
[1642902435644,0.62306655,2451.4,2450.4,2.20023167]
[1642902435841,0.62306655,2451.4,2450.4,0.00284212]
[1642902436042,0.0022737,2451.3,2450.5,0.00227369]
[1642902436344,0.0022737,2451.3,2450.4,0.00284212]
[1642902436641,0.00170527,2451.2,2450.7,1.46753994]
[1642902436841,0.00170527,2451.2,2450.4,0.00284212]
[1642902437042,0.00113685,2451.1,2450.4,0.00284212]
[1642902437699,0.00113685,2451.1,2450.3,0.00341054]
[1642902438295,0.00113685,2451.1,2450.3,1.35339986]
[1642902438699,0.00113685,2451.1,2450.4,0.00284212]
[1642902441539,0.492,2451.0,2450.4,0.00284212]
[1642902441942,0.492,2451.0,2450.2,0.00397896]
[1642902442140,0.492,2451.0,2450.2,3.47651816]
[1642902442341,0.492,2451.0,2450.2,0.00397896]
[1642902442541,0.492,2451.0,2450.3,0.00341054]
[1642902442745,0.492,2451.0,2450.2,1.53802225]
[1642902442941,0.492,2451.0,2450.3,0.00341054]
[1642902443541,0.492,2451.0,2450.3,2.14901443]
[1642902443843,0.492,2451.0,2450.4,0.00284212]
[1642902444942,0.492,2451.0,2450.3,3.47581497]
[1642902445192,0.492,2451.0,2450.6,1.3394611]
[1642902445398,0.00113685,2451.1,2450.6,1.3394611]
[1642902445592,0.00113685,2451.1,2450.7,1.26746705]
[1642902445792,0.00113685,2451.1,2450.8,0.2042]
[1642902445993,0.00113685,2451.1,2450.7,1.26746705]
[1642902445994,0.00113685,2451.1,2451.0,2.9042]
[1642902446393,0.00113685,2451.1,2451.0,4.17426254]
[1642902446593,3.685e-05,2451.1,2451.0,2.9042]
[1642902446994,0.66025626,2451.9,2451.1,2.70076315]
[1642902447195,0.66025626,2452.4,2451.2,2.22598402]
[1642902447394,0.00397896,2451.8,2451.2,2.22598402]
[1642902447694,0.00397896,2451.8,2451.4,1.42745208]
[1642902447897,0.00341054,2451.7,2451.4,3.58068372]
[1642902448094,0.00341054,2451.7,2451.4,1.42745208]
[1642902448294,0.00284212,2451.6,2451.4,1.42745208]
[1642902448696,0.00227369,2451.5,2451.4,1.42745208]
[1642902448940,0.00227369,2451.5,2451.4,1.63141208]
[1642902449141,7.369e-05,2451.5,2451.4,2.6608361]
[1642902449344,7.369e-05,2451.5,2451.4,0.20396]
[1642902449540,7.369e-05,2451.5,2451.4,0.20665473]
[1642902449942,7.369e-05,2451.5,2451.4,24.09665473]
[1642902451641,7.369e-05,2451.5,2451.4,24.69665473]
[1642902452142,7.369e-05,2451.5,2451.4,0.80665473]
[1642902452442,7.369e-05,2451.5,2451.4,2.79380855]
[1642902452697,7.369e-05,2451.5,2451.4,3.09380855]
[1642902453300,7.369e-05,2451.5,2451.4,26.98380855]
[1642902453494,7.369e-05,2451.5,2451.4,3.09380855]
[1642902454396,7.369e-05,2451.5,2451.4,0.20665473]
[1642902454596,7.369e-05,2451.5,2451.4,0.00269473]
[1642902455195,7.369e-05,2451.5,2451.2,0.00383158]
[1642902458746,7.369e-05,2451.5,2451.4,0.20396]
[1642902459145,7.369e-05,2451.5,2451.4,0.20665473]
[1642902459345,7.369e-05,2451.5,2451.4,0.00269473]
[1642902459746,7.369e-05,2451.5,2451.3,0.00326315]
[1642902459948,7.369e-05,2451.5,2451.2,0.00383158]
[1642902460396,7.369e-05,2451.5,2451.4,0.00267487]
[1642902460596,0.49207369,2451.5,2451.4,0.00267487]
[1642902460801,0.49207369,2451.5,2451.4,0.0053696]
[1642902460996,0.84267369,2451.5,2451.4,0.0053696]
[1642902461198,0.84267369,2451.5,2451.1,0.00076315]
[1642902461397,1.2295255,2451.5,2451.1,0.00076315]
[1642902461604,1.65,2451.4,2449.9,2.33265646]
[1642902461796,1.0214947,2451.2,2449.8,3.78973761]
[1642902461996,0.3,2451.1,2450.2,1.4591626]
[1642902462197,0.00113685,2451.4,2450.3,0.20396]
[1642902462397,0.00113685,2451.4,2450.4,3.47222378]
[1642902462596,0.00113685,2451.4,2450.4,0.00454739]
[1642902462796,0.00113685,2451.4,2450.5,0.00397896]
[1642902462997,0.00113685,2451.4,2450.4,0.00454739]
[1642902463598,0.00113685,2451.4,2450.6,1.40290726]
[1642902464045,0.00113685,2451.4,2450.7,0.00284212]
[1642902465846,0.492,2451.3,2450.4,0.00454739]
[1642902466049,0.792,2451.3,2450.4,0.00454739]
[1642902466246,1.792,2451.3,2450.4,0.00454739]
[1642902466444,1.792,2451.3,2450.4,1.27709496]
[1642902466646,0.792,2451.3,2450.4,1.27709496]
[1642902466845,0.792,2451.3,2450.5,0.00397896]
[1642902467048,0.8426,2451.3,2450.5,0.00397896]
[1642902467702,0.92945181,2451.3,2450.4,0.00454739]
[1642902468300,0.92945181,2451.3,2450.1,0.00625266]
[1642902468500,0.92945181,2451.3,2450.0,1.15841887]
[1642902468703,0.8426,2451.3,2450.4,1.2657613]
[1642902468901,0.492,2451.3,2450.4,1.2657613]
[1642902469099,0.492,2451.3,2450.5,0.00397896]
[1642902469300,0.492,2451.3,2450.8,1.38389405]
[1642902469701,0.492,2451.3,2450.9,0.00170527]
[1642902470902,0.0506,2451.2,2450.1,0.00625266]
[1642902471208,0.492,2451.2,2450.2,3.47256671]
[1642902471653,0.492,2451.2,2450.6,1.33212225]
[1642902472052,0.492,2451.2,2450.7,0.00284212]
[1642902472954,0.492,2451.2,2450.2,3.47817869]
[1642902473156,0.492,2451.2,2450.2,0.00568423]
[1642902473355,0.492,2451.2,2450.3,0.00511581]
[1642902473554,0.492,2451.2,2450.2,0.00568423]
[1642902473758,0.492,2451.2,2450.4,1.36273335]
[1642902474253,0.492,2451.2,2450.5,0.00397896]
[1642902476404,0.792,2451.2,2450.5,0.00397896]
[1642902476803,0.792,2451.2,2450.1,0.00625266]
[1642902477303,1.0216131,2450.9,2450.1,0.00625266]
[1642902477500,0.492,2450.8,2450.1,0.00625266]
[1642902477701,0.492,2450.8,2449.9,0.0073895]
[1642902477901,0.792,2450.8,2449.9,0.0073895]
[1642902478099,0.792,2450.8,2450.0,1.37089552]
[1642902478500,0.492,2450.8,2450.2,1.23137978]
[1642902478953,0.492,2450.8,2450.3,0.00511581]
[1642902480248,0.492,2450.8,2450.1,0.00625266]
[1642902480647,0.492,2450.8,2449.9,0.0073895]
[1642902480848,0.492,2450.8,2450.4,1.28496766]
[1642902481249,0.492,2450.8,2450.5,0.00397896]
[1642902481452,2.15006685,2451.4,2450.5,3.52186272]
[1642902481649,0.00113685,2451.4,2450.6,2.14681625]
[1642902481848,0.00113685,2451.4,2450.6,0.00233176]
[1642902482048,0.00113685,2451.4,2450.7,0.00284212]
[1642902482247,0.00164721,2451.3,2450.6,0.00233176]
[1642902482694,0.00107878,2451.2,2450.6,1.4613541]
[1642902483100,0.00278405,2451.5,2450.7,0.00176334]
[1642902483598,0.61528731,2451.6,2450.7,0.00176334]
[1642902483599,1.61528731,2451.6,2450.7,0.00176334]
[1642902483898,0.61528731,2451.6,2450.7,0.20572334]
[1642902484102,0.00278405,2451.5,2450.7,0.20572334]
[1642902484296,0.00278405,2451.5,2450.8,0.00119491]
[1642902484496,0.00221563,2451.4,2450.9,0.20396]
[1642902484895,0.00164721,2451.3,2450.9,0.20396]
[1642902485095,0.00164721,2451.3,2451.0,1.3891163]
[1642902485296,0.00107878,2451.2,2451.0,1.3891163]
[1642902485696,0.00107878,2451.2,2450.8,0.00119491]
[1642902486358,0.00107878,2451.2,2450.7,0.00176334]
[1642902486942,0.00107878,2451.2,2451.0,1.46213256]
[1642902487146,0.00107878,2451.2,2450.7,0.00176334]
[1642902487844,0.00107878,2451.2,2450.8,0.20396]
[1642902488042,0.00107878,2451.2,2451.1,1.26480443]
[1642902489045,0.00107878,2451.2,2451.1,5.57049819]
[1642902489248,0.00107878,2451.2,2451.1,3.31480443]
[1642902489845,0.00107878,2451.2,2451.1,1.26480443]
[1642902491003,0.00107878,2451.2,2451.1,2.86480443]
[1642902491206,0.00107878,2451.2,2451.1,5.38958861]
[1642902491408,7.878e-05,2451.2,2451.1,5.38958861]
[1642902491606,7.48,2452.1,2451.2,0.00072122]
[1642902492109,0.00454739,2452.0,2451.2,0.00072122]
[1642902492508,0.00397897,2451.9,2451.2,0.00072122]
[1642902492806,7.48,2452.1,2451.2,0.00072122]
[1642902492807,7.48,2452.1,2451.8,1.0866524]
[1642902493207,0.00454739,2452.0,2451.8,1.0866524]
[1642902493606,0.00397897,2451.9,2451.8,1.0866524]
[1642902493855,0.00397897,2451.9,2451.3,6.18355036]
[1642902494045,0.00397897,2451.9,2451.3,3.6513]
[1642902494348,0.00341054,2451.8,2451.3,5.76280751]
[1642902494844,0.00284212,2451.7,2451.3,3.6513]
[1642902495045,0.00284212,2451.7,2451.6,1.08835437]
[1642902495245,0.15243354,2452.5,2451.6,1.08835437]
[1642902495645,0.00682108,2452.4,2451.3,8.43004301]
[1642902496048,0.00625266,2452.3,2451.3,4.82454301]
[1642902496547,0.00568424,2452.2,2451.3,4.82454301]
[1642902496748,0.00568424,2452.2,2451.5,1.35214526]
[1642902496950,0.00511581,2452.1,2451.5,1.35214526]
[1642902497447,0.00454739,2452.0,2451.3,3.6513]
[1642902497999,0.00397897,2451.9,2451.3,3.6513]
[1642902498398,0.00341054,2451.8,2451.6,1.20652904]
[1642902498798,0.00284212,2451.7,2451.6,1.20652904]
[1642902498997,0.00284212,2451.7,2451.6,2.95652904]
[1642902499199,0.00454739,2451.7,2451.6,2.95652904]
[1642902499999,0.00454739,2451.7,2451.6,1.20652904]
[1642902500802,0.00454739,2451.7,2451.3,3.6513]
[1642902501205,0.0022737,2451.6,2451.3,3.6513]
[1642902501455,0.0022737,2451.6,2451.3,27.5413]
[1642902501753,5.27e-06,2451.5,2451.3,27.8413]
[1642902501952,5.27e-06,2451.5,2451.4,24.09396]
[1642902502153,7.48,2452.1,2451.4,24.09396]
[1642902502154,0.00284739,2452.0,2451.4,24.09396]
[1642902502351,0.00284739,2452.0,2451.4,0.20396]
[1642902502551,0.00227897,2451.9,2451.4,24.09396]
[1642902502752,0.00227897,2451.9,2451.5,1.29978189]
[1642902502951,0.00171054,2451.8,2451.6,0.20396]
[1642902503451,0.04,2452.5,2451.7,4.12520834]
[1642902503851,0.00512108,2452.4,2451.7,4.12520834]
[1642902504252,0.00455266,2452.3,2451.7,4.12520834]
[1642902504452,0.00455266,2452.3,2451.7,2.7]
[1642902504657,0.04,2452.5,2451.5,2.50688189]
[1642902504658,0.00398424,2452.2,2451.5,2.50688189]
[1642902504856,0.00398424,2452.2,2451.3,0.163]
[1642902505100,0.00341581,2452.1,2451.3,0.163]
[1642902505496,0.00284739,2452.0,2451.3,0.163]
[1642902505697,0.00284739,2452.0,2451.3,1.67500964]
[1642902505901,0.00227897,2451.9,2451.3,2.95858209]
[1642902506297,0.00171054,2451.8,2451.3,2.95858209]
[1642902506598,0.00284739,2452.0,2451.3,2.95858209]
[1642902506798,0.00114212,2451.7,2451.3,2.79558209]
[1642902506999,0.00227897,2451.9,2451.3,2.79558209]
[1642902507202,0.00284739,2452.0,2451.3,1.28357245]
[1642902507399,0.00171054,2451.8,2451.3,1.28357245]
[1642902507600,0.00227897,2451.9,2451.3,1.28357245]
[1642902507802,0.00114212,2451.7,2451.3,1.28357245]
[1642902508001,1.0,2452.1,2451.3,1.28357245]
[1642902508002,0.00171054,2451.8,2451.3,1.28357245]
[1642902508202,0.00284739,2452.0,2451.3,1.18357245]
[1642902508400,0.00114212,2451.7,2451.3,1.18357245]
[1642902508604,0.00227897,2451.9,2451.3,1.18357245]
[1642902508846,0.00341581,2452.1,2451.3,1.18357245]
[1642902509045,0.00171054,2451.8,2451.3,1.18357245]
[1642902509248,0.00284739,2452.0,2451.3,1.18357245]
[1642902509447,0.00114212,2451.7,2451.2,0.00072122]
[1642902509646,0.00227897,2451.9,2451.2,0.00072122]
[1642902509854,0.00227897,2451.9,2451.3,0.00113157]
[1642902509855,0.0506,2451.8,2451.3,0.00113157]
[1642902510047,0.492,2451.7,2451.3,0.00113157]
[1642902510248,0.0506,2451.6,2451.3,0.00113157]
[1642902510446,0.492,2451.5,2451.3,0.00113157]
[1642902510650,0.492,2451.4,2451.3,0.00113157]
[1642902513300,0.8426,2451.4,2451.3,0.00113157]
[1642902513498,2.0,2451.3,2451.2,0.00072122]
[1642902513700,2.492,2451.3,2451.2,0.00072122]
[1642902513897,3.792,2451.3,2451.2,0.00072122]
[1642902514097,4.1426,2451.3,2451.2,0.00072122]
[1642902514299,4.1426,2451.3,2450.1,1.33593173]
[1642902514497,2.1426,2451.3,2450.1,1.33593173]
[1642902514698,2.1426,2451.3,2450.5,1.51367866]
[1642902514899,1.1426,2451.3,2450.5,1.51367866]
[1642902515105,1.492,2451.3,2450.9,1.30515562]
[1642902515400,0.492,2451.3,2450.9,1.30515562]
[1642902515603,0.49314212,2451.7,2451.3,1.4327911]
[1642902515799,0.49314212,2451.7,2451.0,1.52722574]
[1642902516000,0.00170527,2451.6,2451.0,1.52722574]
[1642902516199,0.00170527,2451.6,2451.1,0.00113685]
[1642902516454,0.00113684,2451.5,2451.1,0.00113685]
[1642902516853,0.00170527,2451.6,2451.1,1.21416503]
[1642902517150,0.00113684,2451.5,2451.3,1.5]
[1642902517549,0.00170527,2451.6,2451.3,1.5]
[1642902517953,0.00113684,2451.5,2451.3,1.5]
[1642902518354,0.0506,2451.4,2451.3,1.5]
[1642902518551,0.5426,2451.4,2451.3,1.5]
[1642902518751,1.9926,2451.4,2451.3,1.5]
[1642902519056,1.9926,2451.4,2451.1,0.00113685]
[1642902519057,2.67945181,2451.4,2451.1,0.00113685]
[1642902519452,1.0,2451.3,2450.3,0.00568424]
[1642902519655,0.492,2451.2,2450.4,1.16223074]
[1642902519853,0.492,2451.1,2450.3,0.00568424]
[1642902520103,0.492,2451.1,2450.5,0.00454739]
[1642902520303,0.792,2451.1,2450.5,0.00454739]
[1642902523203,0.0506,2451.0,2450.5,0.00454739]
[1642902523401,0.492,2450.9,2450.5,0.00454739]
[1642902523602,0.6926,2450.9,2450.5,0.00454739]
[1642902523856,2.7198151,2450.9,2450.5,0.00454739]
[1642902524053,2.7198151,2450.9,2450.0,0.00738951]
[1642902524054,2.02172,2450.8,2450.0,0.00738951]
[1642902524251,2.02172,2450.8,2449.6,3.44114444]
[1642902524252,1.51372,2450.7,2449.9,0.00795793]
[1642902524451,1.51372,2450.7,2449.6,2.22984444]
[1642902524452,0.3,2450.6,2449.8,0.00852636]
[1642902524751,0.492,2450.5,2449.3,0.01136847]
[1642902524951,1.60065511,2450.5,2449.3,0.01136847]
[1642902525152,0.68685181,2450.4,2449.3,0.01136847]
[1642902525357,0.492,2450.3,2449.3,0.01136847]
[1642902526152,0.53233678,2450.3,2449.3,0.01136847]
[1642902526352,0.53233678,2450.3,2449.4,1.4404625]
[1642902526554,0.53233678,2450.3,2449.5,2.11555909]
[1642902526753,0.53233678,2450.3,2449.5,2.12579072]
[1642902526953,0.53233678,2450.3,2449.6,0.0096632]
[1642902527453,0.53233678,2450.3,2449.6,1.25160878]
[1642902527908,0.53233678,2450.3,2449.7,0.00909478]
[1642902528305,0.53233678,2450.3,2449.6,0.65104036]
[1642902528808,0.00284212,2450.2,2450.0,1.260183]
[1642902529207,1.0,2450.6,2450.0,1.260183]
[1642902529208,0.00227369,2450.1,2450.0,1.260183]
[1642902529609,0.00454739,2450.1,2450.0,1.260183]
[1642902531450,0.00454739,2450.1,2449.7,3.6037]
[1642902531654,0.00454739,2450.1,2449.5,1.1311]
[1642902531851,0.00170527,2450.0,2449.5,1.1311]
[1642902532252,0.00170527,2450.0,2449.0,6.81842931]
[1642902532253,0.00113685,2449.9,2449.0,6.81842931]
[1642902532452,0.00113685,2449.9,2449.2,1.21863958]
[1642902532651,0.492,2450.1,2449.2,1.21863958]
[1642902532652,0.792,2450.1,2449.2,1.21863958]
[1642902532852,0.492,2450.1,2449.2,1.21863958]
[1642902533050,0.00170527,2450.0,2449.2,1.21863958]
[1642902533450,0.00113685,2449.9,2449.4,1.2672395]
[1642902533852,0.00170527,2450.0,2449.5,0.00113685]
[1642902534251,0.00113685,2449.9,2449.5,0.00113685]
[1642902534652,0.00170527,2450.0,2449.5,0.00113685]
[1642902535196,0.00113685,2449.9,2449.5,0.00113685]
[1642902535598,0.00170527,2450.0,2449.5,0.00113685]
[1642902535996,0.00113685,2449.9,2449.5,0.00113685]
[1642902536397,0.492,2450.1,2449.5,0.00113685]
[1642902536398,0.00170527,2450.0,2449.5,0.00113685]
[1642902536803,0.00113685,2449.9,2449.5,0.00113685]
[1642902537300,0.00170527,2450.0,2449.5,0.00113685]
[1642902537697,0.492,2450.1,2449.5,0.00113685]
[1642902537698,0.00113685,2449.9,2449.5,0.00113685]
[1642902538099,0.00170527,2450.0,2449.3,0.00227369]
[1642902538498,0.79313685,2449.9,2449.3,0.00227369]
[1642902538700,0.492,2449.8,2449.3,0.00227369]
[1642902538955,0.792,2449.8,2449.3,0.00227369]
[1642902539151,0.492,2449.8,2449.3,0.00227369]
[1642902539355,0.492,2449.8,2449.0,1.24200082]
[1642902540151,0.492,2449.8,2449.1,1.11942261]
[1642902540353,0.492,2449.8,2449.0,0.00397896]
[1642902540555,0.792,2449.8,2449.2,0.00284212]
[1642902540754,0.792,2449.8,2449.0,0.00397896]
[1642902540755,0.492,2449.8,2449.0,0.00397896]
[1642902541152,0.792,2449.8,2449.0,0.00397896]
[1642902541354,0.492,2449.8,2449.0,0.00397896]
[1642902541753,0.00170527,2450.0,2449.6,1.21716349]
[1642902541952,0.00170527,2450.0,2449.7,2.16420747]
[1642902542153,0.00113685,2449.9,2449.6,1.21716349]
[1642902542599,0.61072783,2450.2,2449.6,1.21716349]
[1642902542600,0.00227369,2450.1,2449.6,1.21716349]
[1642902542999,0.00170527,2450.0,2449.6,1.21716349]
[1642902543200,0.00170527,2450.0,2449.1,6.84559964]
[1642902543401,0.00113685,2449.9,2449.1,6.64163964]
[1642902543604,0.00113685,2449.9,2449.2,0.00284212]
[1642902543800,0.00227369,2450.1,2449.2,0.00284212]
[1642902544200,0.00170527,2450.0,2449.4,1.53525281]
[1642902544401,0.00170527,2450.0,2449.4,2.7198751]
[1642902544601,0.00113685,2449.9,2449.5,0.00113685]
[1642902545001,0.00227369,2450.1,2449.5,0.00113685]
[1642902545402,0.00170527,2450.0,2449.5,0.00113685]
[1642902545804,0.00113685,2449.9,2449.2,0.00284212]
[1642902546206,0.91072783,2450.2,2449.2,0.00284212]
[1642902546207,0.00227369,2450.1,2449.2,0.00284212]
[1642902546454,0.00227369,2450.1,2449.3,1.29941612]
[1642902546654,0.00170527,2450.0,2449.2,0.00284212]
[1642902546857,0.49370527,2450.0,2449.4,0.00170527]
[1642902547056,0.08798866,2449.9,2449.4,0.00170527]
[1642902547255,0.492,2449.8,2449.0,0.00397896]
[1642902547457,0.87885181,2449.8,2449.0,0.00397896]
[1642902548254,1.90098181,2449.8,2449.0,0.00397896]
[1642902548458,1.87885181,2449.8,2449.0,0.00397896]
[1642902548658,0.87885181,2449.8,2449.0,0.00397896]
[1642902548859,1.87885181,2449.8,2449.0,0.00397896]
[1642902549057,1.87885181,2449.8,2449.0,0.00298526]
[1642902549455,0.0009937,2449.7,2448.9,1.92298526]
[1642902549655,0.492,2449.6,2448.9,1.92298526]
[1642902549855,0.49541054,2449.6,2448.9,1.92298526]
[1642902550115,0.00284211,2449.5,2448.9,1.92298526]
[1642902550514,0.00227369,2449.4,2448.9,1.92298526]
[1642902550716,0.792,2449.6,2449.4,0.00454738]
[1642902551319,0.492,2449.6,2449.4,0.00454738]
[1642902554062,0.792,2449.6,2449.4,0.00454738]
[1642902554256,0.492,2449.6,2449.4,0.00454738]
[1642902555058,0.792,2449.6,2449.4,0.00454738]
[1642902557715,0.792,2449.6,2449.0,0.00227369]
[1642902557716,0.08685181,2449.5,2449.0,0.00227369]
[1642902557913,0.492,2449.4,2449.0,0.00227369]
[1642902558309,0.792,2449.4,2449.0,0.00227369]
[1642902558509,1.092,2449.4,2449.0,0.00227369]
[1642902559910,2.11431,2449.4,2449.0,0.00227369]
[1642902560113,3.11431,2449.4,2449.0,0.00227369]
[1642902560712,2.11431,2449.4,2448.9,1.92298526]
[1642902560912,1.0,2449.3,2448.9,1.92298526]